[Event "Late-Titled-Tuesday-Blitz-April-23-2024"]
[Site "Chess.com"]
[Date "2024.04.23"]
[Round "5"]
[White "WilsonPalencia21"]
[Black "BenchGM"]
[Result "1-0"]
[WhiteElo "2521"]
[BlackElo "2234"]
[TimeControl "180+1"]
[EndTime "14:57:15 PDT"]
[Termination "WilsonPalencia21 won by resignation"]

1. d4 {[%clk 0:03:00.9]} 1... Nf6 {[%clk 0:02:59.6]} 2. c4 {[%clk 0:03:00]} 2...
e6 {[%clk 0:02:59.5]} 3. Nf3 {[%clk 0:03:00.2]} 3... d5 {[%clk 0:02:59.4]} 4.
Nc3 {[%clk 0:02:59.6]} 4... c5 {[%clk 0:02:58.7]} 5. cxd5 {[%clk 0:02:59.6]}
5... Nxd5 {[%clk 0:02:58.3]} 6. e4 {[%clk 0:03:00.2]} 6... Nxc3 {[%clk
0:02:57.5]} 7. bxc3 {[%clk 0:03:01.1]} 7... cxd4 {[%clk 0:02:57.4]} 8. cxd4
{[%clk 0:03:02]} 8... Bb4+ {[%clk 0:02:57.3]} 9. Bd2 {[%clk 0:03:02.9]} 9...
Bxd2+ {[%clk 0:02:57.3]} 10. Qxd2 {[%clk 0:03:03.8]} 10... Nd7 {[%clk
0:02:47.6]} 11. Bb5 {[%clk 0:03:01.6]} 11... O-O {[%clk 0:02:40.6]} 12. O-O
{[%clk 0:03:01.1]} 12... Nf6 {[%clk 0:02:39.4]} 13. Rfe1 {[%clk 0:03:01.3]}
13... Bd7 {[%clk 0:02:32.7]} 14. Bd3 {[%clk 0:03:00.1]} 14... Bc6 {[%clk
0:02:27.9]} 15. Rad1 {[%clk 0:02:59.2]} 15... h6 {[%clk 0:02:14.2]} 16. Ne5
{[%clk 0:02:52.3]} 16... Ba4 {[%clk 0:02:10.5]} 17. Bc2 {[%clk 0:02:31.9]} 17...
Bxc2 {[%clk 0:02:06.1]} 18. Qxc2 {[%clk 0:02:29.9]} 18... Rc8 {[%clk 0:02:05.6]}
19. Qb3 {[%clk 0:02:28.4]} 19... Qa5 {[%clk 0:01:55.9]} 20. Nf3 {[%clk 0:02:04]}
20... Rc3 {[%clk 0:01:51.7]} 21. Qxb7 {[%clk 0:02:00.2]} 21... Qxa2 {[%clk
0:01:47.1]} 22. Ra1 {[%clk 0:01:52.7]} 22... Qc2 {[%clk 0:01:46.7]} 23. Rxa7
{[%clk 0:01:43.5]} 23... Rb3 {[%clk 0:01:34.4]} 24. Qc7 {[%clk 0:01:32.5]} 24...
Rc3 {[%clk 0:01:25.5]} 25. Qa5 {[%clk 0:01:07.1]} 25... Ng4 {[%clk 0:00:40.8]}
26. Rf1 {[%clk 0:00:52.7]} 26... Rfc8 {[%clk 0:00:32.8]} 27. h3 {[%clk
0:00:48.6]} 27... Nf6 {[%clk 0:00:19.4]} 28. e5 {[%clk 0:00:41.5]} 28... Nd5
{[%clk 0:00:18.6]} 29. Qa2 {[%clk 0:00:33.2]} 29... Qf5 {[%clk 0:00:17.5]} 30.
Ra8 {[%clk 0:00:27.3]} 30... Kh7 {[%clk 0:00:13.3]} 31. Rxc8 {[%clk 0:00:26.7]}
31... Rxc8 {[%clk 0:00:14]} 32. Qb1 {[%clk 0:00:24.5]} 32... Rc2 {[%clk
0:00:14]} 33. Rc1 {[%clk 0:00:11.4]} 33... Rxc1+ {[%clk 0:00:09]} 34. Qxc1
{[%clk 0:00:11.6]} 34... Nf4 {[%clk 0:00:09.3]} 35. Qe3 {[%clk 0:00:10.7]} 35...
g5 {[%clk 0:00:07.5]} 36. Kh2 {[%clk 0:00:10.4]} 36... Qb1 {[%clk 0:00:07]} 37.
Ng1 {[%clk 0:00:09.8]} 37... Qf1 {[%clk 0:00:06.9]} 38. Qf3 {[%clk 0:00:09.4]}
38... Qa1 {[%clk 0:00:04.3]} 39. g3 {[%clk 0:00:09.5]} 39... Ng6 {[%clk
0:00:04.3]} 40. Qxf7+ {[%clk 0:00:09.1]} 40... Kh8 {[%clk 0:00:04.3]} 41. Qxg6
{[%clk 0:00:09.6]} 41... Qxd4 {[%clk 0:00:04.5]} 42. Qxh6+ {[%clk 0:00:09.9]}
42... Kg8 {[%clk 0:00:05.1]} 43. Qxe6+ {[%clk 0:00:09.8]} 43... Kg7 {[%clk
0:00:04.6]} 44. Qf6+ {[%clk 0:00:10.2]} 44... Kh7 {[%clk 0:00:04.9]} 45. Qf5+
{[%clk 0:00:09.8]} 45... Kh6 {[%clk 0:00:04.5]} 46. Kg2 {[%clk 0:00:10.4]} 46...
Qd5+ {[%clk 0:00:04.5]} 47. Nf3 {[%clk 0:00:10.8]} 47... Kg7 {[%clk 0:00:03.8]}
48. Qxg5+ {[%clk 0:00:10.9]} 48... Kf8 {[%clk 0:00:04.3]} 49. Qf6+ {[%clk
0:00:11.4]} 49... Ke8 {[%clk 0:00:04.6]} 50. e6 {[%clk 0:00:11.9]} 50... Qc6
{[%clk 0:00:03.9]} 51. Qf7+ {[%clk 0:00:12]} 51... Kd8 {[%clk 0:00:04.3]} 52.
Qd7+ {[%clk 0:00:12.5]} 52... Qxd7 {[%clk 0:00:04.6]} 53. exd7 {[%clk
0:00:13.4]} 53... Kxd7 {[%clk 0:00:05.3]} 54. h4 {[%clk 0:00:13.5]} 1-0

[Event "Late-Titled-Tuesday-Blitz-April-23-2024"]
[Site "Chess.com"]
[Date "2024.04.23"]
[Round "5"]
[White "th3d4rkness"]
[Black "Indefatigable11"]
[Result "0-1"]
[WhiteElo "2137"]
[BlackElo "2405"]
[TimeControl "180+1"]
[EndTime "14:57:16 PDT"]
[Termination "Indefatigable11 won on time"]

1. e4 {[%clk 0:03:00.9]} 1... c5 {[%clk 0:02:58]} 2. Nf3 {[%clk 0:03:00.3]} 2...
d6 {[%clk 0:02:57.3]} 3. Bb5+ {[%clk 0:02:59.8]} 3... Bd7 {[%clk 0:02:56.7]} 4.
Bxd7+ {[%clk 0:02:59]} 4... Qxd7 {[%clk 0:02:57.3]} 5. O-O {[%clk 0:02:58.4]}
5... Nf6 {[%clk 0:02:56.1]} 6. Re1 {[%clk 0:02:58]} 6... Nc6 {[%clk 0:02:55.1]}
7. h3 {[%clk 0:02:52.3]} 7... g6 {[%clk 0:02:54.5]} 8. c3 {[%clk 0:02:51.4]}
8... e5 {[%clk 0:02:45.3]} 9. d4 {[%clk 0:02:49.8]} 9... cxd4 {[%clk 0:02:45]}
10. cxd4 {[%clk 0:02:49.5]} 10... exd4 {[%clk 0:02:44.9]} 11. Nxd4 {[%clk
0:02:48.2]} 11... Bg7 {[%clk 0:02:44.6]} 12. Nb5 {[%clk 0:02:45]} 12... Rd8
{[%clk 0:02:37.3]} 13. Bf4 {[%clk 0:02:34.3]} 13... O-O {[%clk 0:02:31]} 14.
Qxd6 {[%clk 0:02:13.5]} 14... Qxd6 {[%clk 0:01:43.7]} 15. Bxd6 {[%clk
0:02:06.7]} 15... Rfe8 {[%clk 0:01:41.9]} 16. e5 {[%clk 0:02:02.1]} 16... Nd7
{[%clk 0:01:25.1]} 17. Nc7 {[%clk 0:02:01.2]} 17... Bxe5 {[%clk 0:01:24.4]} 18.
Nxe8 {[%clk 0:01:58.2]} 18... Bxb2 {[%clk 0:01:24.2]} 19. Bc7 {[%clk 0:01:23.4]}
19... Rc8 {[%clk 0:01:19.3]} 20. Na3 {[%clk 0:01:13.7]} 20... Bxa1 {[%clk
0:01:14.5]} 21. Nb5 {[%clk 0:01:00.6]} 21... Bh8 {[%clk 0:01:05.5]} 22. Nbd6
{[%clk 0:00:51.6]} 22... Ra8 {[%clk 0:01:01.5]} 23. Nxb7 {[%clk 0:00:48.2]}
23... Nde5 {[%clk 0:00:53.1]} 24. Ned6 {[%clk 0:00:45.2]} 24... Bg7 {[%clk
0:00:44]} 25. f4 {[%clk 0:00:44.8]} 25... Nd3 {[%clk 0:00:43.3]} 26. Re8+ {[%clk
0:00:44.3]} 26... Rxe8 {[%clk 0:00:42.4]} 27. Nxe8 {[%clk 0:00:44.9]} 27... Bd4+
{[%clk 0:00:42]} 28. Kh2 {[%clk 0:00:43.9]} 28... Kf8 {[%clk 0:00:40.7]} 29.
Ned6 {[%clk 0:00:38.4]} 29... Nxf4 {[%clk 0:00:39.4]} 30. Nxf7 {[%clk
0:00:37.2]} 30... Ne6 {[%clk 0:00:36.6]} 31. Nh6 {[%clk 0:00:32.7]} 31... Nxc7
{[%clk 0:00:35.4]} 32. Ng4 {[%clk 0:00:30.2]} 32... Ke7 {[%clk 0:00:33.5]} 33.
g3 {[%clk 0:00:28.1]} 33... Nb5 {[%clk 0:00:31.7]} 34. Kg2 {[%clk 0:00:26.5]}
34... Kd7 {[%clk 0:00:30.3]} 35. a4 {[%clk 0:00:22.8]} 35... Nc3 {[%clk
0:00:29.7]} 36. a5 {[%clk 0:00:22.7]} 36... Kc7 {[%clk 0:00:28.6]} 37. a6 {[%clk
0:00:23]} 37... Ne2 {[%clk 0:00:18]} 38. Kf3 {[%clk 0:00:21.3]} 38... Nc1 {[%clk
0:00:17.9]} 39. Ke4 {[%clk 0:00:20.4]} 39... Nb3 {[%clk 0:00:17.9]} 40. Kd5
{[%clk 0:00:19.8]} 40... Bb6 {[%clk 0:00:17.5]} 41. Ne5 {[%clk 0:00:14.9]} 41...
Nxe5 {[%clk 0:00:17.5]} 42. Kxe5 {[%clk 0:00:15.3]} 42... Nd4 {[%clk 0:00:17.7]}
43. Nd6 {[%clk 0:00:15]} 43... Nf3+ {[%clk 0:00:16.5]} 44. Kd5 {[%clk
0:00:14.2]} 44... Ng5 {[%clk 0:00:16.4]} 45. h4 {[%clk 0:00:13.1]} 45... Nf3
{[%clk 0:00:14]} 46. Nb5+ {[%clk 0:00:11.4]} 46... Kd7 {[%clk 0:00:13.5]} 47.
Nd6 {[%clk 0:00:10.4]} 47... Nd4 {[%clk 0:00:13.1]} 48. Ne4 {[%clk 0:00:10.2]}
48... Ne2 {[%clk 0:00:12.7]} 49. Nf6+ {[%clk 0:00:08.6]} 49... Ke7 {[%clk
0:00:13.2]} 50. Nxh7 {[%clk 0:00:08.6]} 50... Nxg3 {[%clk 0:00:13.5]} 51. Ng5
{[%clk 0:00:08.2]} 51... Nf5 {[%clk 0:00:13.6]} 52. Nf3 {[%clk 0:00:06]} 52...
Bf2 {[%clk 0:00:13.7]} 53. h5 {[%clk 0:00:03.8]} 53... gxh5 {[%clk 0:00:14]} 54.
Ke5 {[%clk 0:00:04.2]} 54... Nh4 {[%clk 0:00:13]} 0-1

[Event "Late-Titled-Tuesday-Blitz-April-23-2024"]
[Site "Chess.com"]
[Date "2024.04.23"]
[Round "5"]
[White "Bugcrusher"]
[Black "PavelShkapenko"]
[Result "1-0"]
[WhiteElo "2514"]
[BlackElo "2741"]
[TimeControl "180+1"]
[EndTime "14:57:19 PDT"]
[Termination "Bugcrusher won by resignation"]

1. d4 {[%clk 0:02:55.9]} 1... d5 {[%clk 0:02:58.9]} 2. Nf3 {[%clk 0:02:54.2]}
2... Nf6 {[%clk 0:02:57.7]} 3. c4 {[%clk 0:02:54.1]} 3... dxc4 {[%clk
0:02:57.3]} 4. e3 {[%clk 0:02:53.9]} 4... Bg4 {[%clk 0:02:56.1]} 5. Bxc4 {[%clk
0:02:52.3]} 5... e6 {[%clk 0:02:56]} 6. Nc3 {[%clk 0:02:52.1]} 6... Nc6 {[%clk
0:02:55.6]} 7. h3 {[%clk 0:02:51.7]} 7... Bh5 {[%clk 0:02:55.2]} 8. g4 {[%clk
0:02:50.6]} 8... Bg6 {[%clk 0:02:54.7]} 9. Nh4 {[%clk 0:02:50.8]} 9... Be4
{[%clk 0:02:29.7]} 10. Nxe4 {[%clk 0:02:42.3]} 10... Nxe4 {[%clk 0:02:29.4]} 11.
Nf3 {[%clk 0:02:42.7]} 11... Bb4+ {[%clk 0:02:29.2]} 12. Kf1 {[%clk 0:02:42.8]}
12... O-O {[%clk 0:02:27.5]} 13. a3 {[%clk 0:02:41.6]} 13... Bd6 {[%clk
0:02:27]} 14. b4 {[%clk 0:02:37.7]} 14... e5 {[%clk 0:01:44.3]} 15. b5 {[%clk
0:02:29.2]} 15... Na5 {[%clk 0:01:44.4]} 16. Bd3 {[%clk 0:02:07.9]} 16... Nc3
{[%clk 0:01:44.5]} 17. Qc2 {[%clk 0:02:04.4]} 17... e4 {[%clk 0:01:44.8]} 18.
Bxe4 {[%clk 0:02:00.4]} 18... Nxe4 {[%clk 0:01:45.3]} 19. Qxe4 {[%clk
0:01:59.6]} 19... Qd7 {[%clk 0:01:45.6]} 20. a4 {[%clk 0:01:54.9]} 20... Rae8
{[%clk 0:01:33.8]} 21. Qf5 {[%clk 0:01:50.9]} 21... Qe6 {[%clk 0:00:50.4]} 22.
Qxe6 {[%clk 0:01:48.3]} 22... fxe6 {[%clk 0:00:51]} 23. Kg2 {[%clk 0:01:45.7]}
23... Re7 {[%clk 0:00:46.3]} 24. Nd2 {[%clk 0:01:42.4]} 24... e5 {[%clk
0:00:46.5]} 25. dxe5 {[%clk 0:01:36.1]} 25... Bxe5 {[%clk 0:00:45.4]} 26. Rb1
{[%clk 0:01:34.3]} 26... Rd8 {[%clk 0:00:37.8]} 27. Nf3 {[%clk 0:01:34]} 27...
Bc3 {[%clk 0:00:36.4]} 28. Bb2 {[%clk 0:01:32.3]} 28... Bxb2 {[%clk 0:00:34.1]}
29. Rxb2 {[%clk 0:01:32.2]} 29... Nc4 {[%clk 0:00:29.9]} 30. Rc2 {[%clk
0:01:31.1]} 30... Nb6 {[%clk 0:00:30]} 31. a5 {[%clk 0:01:28.9]} 31... Nd5
{[%clk 0:00:30.1]} 32. Rd2 {[%clk 0:01:25]} 32... c6 {[%clk 0:00:28]} 33. bxc6
{[%clk 0:01:23.4]} 33... bxc6 {[%clk 0:00:28.6]} 34. Rhd1 {[%clk 0:01:22]} 34...
Rf8 {[%clk 0:00:27.3]} 35. Nd4 {[%clk 0:01:18]} 35... Ref7 {[%clk 0:00:20.4]}
36. Nxc6 {[%clk 0:01:16.4]} 36... Rxf2+ {[%clk 0:00:20.4]} 37. Rxf2 {[%clk
0:01:14.5]} 37... Nxe3+ {[%clk 0:00:21]} 38. Kg3 {[%clk 0:01:10.5]} 38... Rxf2
{[%clk 0:00:16.8]} 39. Rd8+ {[%clk 0:01:09]} 39... Rf8 {[%clk 0:00:16.8]} 40.
Rxf8+ {[%clk 0:01:09.2]} 40... Kxf8 {[%clk 0:00:17.5]} 41. Nxa7 {[%clk
0:01:09.5]} 41... Nc4 {[%clk 0:00:18.1]} 42. a6 {[%clk 0:01:09.4]} 42... Nb6
{[%clk 0:00:17]} 43. Nc6 {[%clk 0:01:08.7]} 43... Ke8 {[%clk 0:00:17.7]} 44. a7
{[%clk 0:01:06.6]} 44... Kd7 {[%clk 0:00:18.1]} 45. Nd4 {[%clk 0:01:05]} 45...
Kc7 {[%clk 0:00:17.6]} 46. Ne6+ {[%clk 0:01:05.2]} 46... Kb7 {[%clk 0:00:17.6]}
47. Nxg7 {[%clk 0:01:05.9]} 47... Kxa7 {[%clk 0:00:18.2]} 48. Kf4 {[%clk
0:01:06.6]} 48... Kb7 {[%clk 0:00:17.3]} 49. Kg5 {[%clk 0:01:07.5]} 49... Nd7
{[%clk 0:00:17]} 50. Kh6 {[%clk 0:01:06.4]} 50... Nf6 {[%clk 0:00:17.7]} 51. g5
{[%clk 0:01:05.5]} 51... Ne4 {[%clk 0:00:18.1]} 52. h4 {[%clk 0:01:03.5]} 52...
Kc7 {[%clk 0:00:18.7]} 53. Kxh7 {[%clk 0:01:03.5]} 53... Kd7 {[%clk 0:00:19.6]}
54. Nh5 {[%clk 0:00:59.3]} 54... Ke6 {[%clk 0:00:19.3]} 55. Kg7 {[%clk
0:00:56.5]} 55... Kf5 {[%clk 0:00:17.7]} 56. g6 {[%clk 0:00:47]} 56... Nc5
{[%clk 0:00:16.7]} 57. Kf7 {[%clk 0:00:44.5]} 57... Nd3 {[%clk 0:00:12.9]} 58.
Ng3+ {[%clk 0:00:44.1]} 58... Kg4 {[%clk 0:00:12.3]} 59. g7 {[%clk 0:00:43.9]}
59... Ne5+ {[%clk 0:00:12.6]} 60. Ke6 {[%clk 0:00:43.9]} 60... Nf3 {[%clk
0:00:10.7]} 61. g8=Q+ {[%clk 0:00:42.6]} 61... Kxh4 {[%clk 0:00:11]} 62. Nf5+
{[%clk 0:00:42.1]} 62... Kh5 {[%clk 0:00:11.5]} 63. Qg3 {[%clk 0:00:38.8]} 63...
Ng5+ {[%clk 0:00:11.6]} 64. Ke5 {[%clk 0:00:37.4]} 64... Kg6 {[%clk 0:00:08.9]}
65. Kf4 {[%clk 0:00:36.1]} 65... Kf6 {[%clk 0:00:09]} 66. Qxg5+ {[%clk 0:00:36]}
66... Ke6 {[%clk 0:00:08.4]} 67. Qe7+ {[%clk 0:00:36.2]} 67... Kd5 {[%clk
0:00:08.5]} 68. Qd6+ {[%clk 0:00:36.5]} 1-0

[Event "Late-Titled-Tuesday-Blitz-April-23-2024"]
[Site "Chess.com"]
[Date "2024.04.23"]
[Round "5"]
[White "kripri"]
[Black "expii"]
[Result "1-0"]
[WhiteElo "2340"]
[BlackElo "2175"]
[TimeControl "180+1"]
[EndTime "14:57:21 PDT"]
[Termination "kripri won by checkmate"]

1. e4 {[%clk 0:03:00.9]} 1... c5 {[%clk 0:02:59]} 2. Nf3 {[%clk 0:03:00.3]} 2...
d6 {[%clk 0:02:59.5]} 3. d4 {[%clk 0:03:00.5]} 3... cxd4 {[%clk 0:03:00.4]} 4.
Nxd4 {[%clk 0:03:00.9]} 4... Nf6 {[%clk 0:02:59.6]} 5. Nc3 {[%clk 0:03:01.1]}
5... g6 {[%clk 0:02:58.6]} 6. Be3 {[%clk 0:03:01]} 6... Bg7 {[%clk 0:02:57.4]}
7. f3 {[%clk 0:02:59.8]} 7... O-O {[%clk 0:02:56.4]} 8. Qd2 {[%clk 0:03:00]}
8... Nc6 {[%clk 0:02:52.4]} 9. O-O-O {[%clk 0:02:59.9]} 9... d5 {[%clk
0:02:48.7]} 10. Nxc6 {[%clk 0:03:00.2]} 10... bxc6 {[%clk 0:02:48.1]} 11. Bh6
{[%clk 0:03:00.2]} 11... Be6 {[%clk 0:02:32]} 12. Bxg7 {[%clk 0:02:52.6]} 12...
Kxg7 {[%clk 0:02:32.9]} 13. e5 {[%clk 0:02:52.7]} 13... Nd7 {[%clk 0:02:27.4]}
14. h4 {[%clk 0:02:52.7]} 14... h5 {[%clk 0:02:17.1]} 15. f4 {[%clk 0:02:50.7]}
15... Bf5 {[%clk 0:02:08.1]} 16. Bd3 {[%clk 0:02:49.1]} 16... e6 {[%clk
0:02:01.3]} 17. Bxf5 {[%clk 0:02:38]} 17... exf5 {[%clk 0:02:02.2]} 18. g3
{[%clk 0:02:28.1]} 18... Nc5 {[%clk 0:01:56.5]} 19. Qd4 {[%clk 0:02:26.5]} 19...
Ne6 {[%clk 0:01:55]} 20. Qa4 {[%clk 0:02:25.9]} 20... Qb6 {[%clk 0:01:49]} 21.
Rhe1 {[%clk 0:02:00.9]} 21... Rab8 {[%clk 0:01:38.5]} 22. Qa3 {[%clk 0:01:47.6]}
22... Nc5 {[%clk 0:01:26.2]} 23. b3 {[%clk 0:01:38.6]} 23... Ne4 {[%clk
0:01:17]} 24. Nxe4 {[%clk 0:01:36.9]} 24... fxe4 {[%clk 0:00:53.7]} 25. Qe7
{[%clk 0:00:58.6]} 25... Qd8 {[%clk 0:00:47.7]} 26. Qc5 {[%clk 0:00:57.3]} 26...
Qb6 {[%clk 0:00:39]} 27. Qd6 {[%clk 0:00:37.1]} 27... Rbc8 {[%clk 0:00:29.7]}
28. f5 {[%clk 0:00:30.6]} 28... Qd8 {[%clk 0:00:26.8]} 29. f6+ {[%clk 0:00:25]}
29... Kh7 {[%clk 0:00:25.9]} 30. Qc5 {[%clk 0:00:23.6]} 30... Qd7 {[%clk
0:00:24.8]} 31. Rxe4 {[%clk 0:00:22.5]} 31... Qf5 {[%clk 0:00:23]} 32. Re3
{[%clk 0:00:22.1]} 32... Rfe8 {[%clk 0:00:21.3]} 33. Qd4 {[%clk 0:00:22]} 33...
c5 {[%clk 0:00:19.2]} 34. Qxd5 {[%clk 0:00:21.2]} 34... Rcd8 {[%clk 0:00:19.3]}
35. Qxd8 {[%clk 0:00:19]} 35... Rxd8 {[%clk 0:00:18.9]} 36. Rxd8 {[%clk
0:00:19.8]} 36... Qf1+ {[%clk 0:00:18.6]} 37. Kb2 {[%clk 0:00:20.3]} 37... Qf2
{[%clk 0:00:16.5]} 38. Red3 {[%clk 0:00:20.5]} 38... c4 {[%clk 0:00:15.2]} 39.
bxc4 {[%clk 0:00:19.7]} 39... Qb6+ {[%clk 0:00:15.4]} 40. Kc1 {[%clk 0:00:18.8]}
40... Qg1+ {[%clk 0:00:15.5]} 41. Kb2 {[%clk 0:00:13.8]} 41... Qb6+ {[%clk
0:00:15.2]} 42. Ka1 {[%clk 0:00:11.9]} 42... Qg1+ {[%clk 0:00:14.5]} 43. Rd1
{[%clk 0:00:11.6]} 43... Qxg3 {[%clk 0:00:14.1]} 44. R8d5 {[%clk 0:00:11.1]}
44... Qxh4 {[%clk 0:00:13.4]} 45. c5 {[%clk 0:00:08.9]} 45... Qc4 {[%clk
0:00:13]} 46. Kb1 {[%clk 0:00:05.2]} 46... Qb4+ {[%clk 0:00:10.9]} 47. Ka1
{[%clk 0:00:04.3]} 47... Qc3+ {[%clk 0:00:10.3]} 48. Kb1 {[%clk 0:00:04.9]}
48... h4 {[%clk 0:00:09.8]} 49. R1d3 {[%clk 0:00:04.5]} 49... Qe1+ {[%clk
0:00:09.4]} 50. Kb2 {[%clk 0:00:04.6]} 50... Qb4+ {[%clk 0:00:09.7]} 51. Rb3
{[%clk 0:00:05]} 51... Qc4 {[%clk 0:00:10.2]} 52. Rd7 {[%clk 0:00:03.5]} 52...
h3 {[%clk 0:00:08.3]} 53. c6 {[%clk 0:00:03.9]} 53... Qg4 {[%clk 0:00:01.8]} 54.
Rxf7+ {[%clk 0:00:03.3]} 54... Kg8 {[%clk 0:00:02.7]} 55. Re7 {[%clk 0:00:03.5]}
55... Qf5 {[%clk 0:00:03]} 56. Rb8+ {[%clk 0:00:03.7]} 56... Qc8 {[%clk
0:00:02.1]} 57. Rxc8# {[%clk 0:00:04.6]} 1-0

[Event "Late-Titled-Tuesday-Blitz-April-23-2024"]
[Site "Chess.com"]
[Date "2024.04.23"]
[Round "5"]
[White "Thjop"]
[Black "chessdjw"]
[Result "0-1"]
[WhiteElo "2577"]
[BlackElo "2805"]
[TimeControl "180+1"]
[EndTime "14:57:23 PDT"]
[Termination "chessdjw won by resignation"]

1. e4 {[%clk 0:03:00.9]} 1... e5 {[%clk 0:02:57.8]} 2. Nf3 {[%clk 0:03:01]} 2...
Nc6 {[%clk 0:02:57]} 3. Bb5 {[%clk 0:03:01]} 3... a6 {[%clk 0:02:56.7]} 4. Ba4
{[%clk 0:03:01.4]} 4... Nge7 {[%clk 0:02:55.5]} 5. O-O {[%clk 0:03:01.2]} 5...
Ng6 {[%clk 0:02:55.2]} 6. c3 {[%clk 0:02:53.3]} 6... d5 {[%clk 0:02:54.6]} 7.
exd5 {[%clk 0:02:37.9]} 7... Qxd5 {[%clk 0:02:55.5]} 8. d4 {[%clk 0:02:13.1]}
8... Bg4 {[%clk 0:02:55.3]} 9. dxe5 {[%clk 0:01:55.4]} 9... O-O-O {[%clk
0:02:54.3]} 10. Qxd5 {[%clk 0:01:51.6]} 10... Rxd5 {[%clk 0:02:54.1]} 11. Bb3
{[%clk 0:01:32.9]} 11... Bxf3 {[%clk 0:02:53.3]} 12. gxf3 {[%clk 0:01:32.5]}
12... Rxe5 {[%clk 0:02:53.8]} 13. Bxf7 {[%clk 0:01:25.9]} 13... Bc5 {[%clk
0:02:54]} 14. Nd2 {[%clk 0:01:20.3]} 14... Rf8 {[%clk 0:02:53.6]} 15. Bxg6
{[%clk 0:01:15.6]} 15... Rg5+ {[%clk 0:02:53.7]} 16. Kh1 {[%clk 0:01:15.1]}
16... Rxg6 {[%clk 0:02:54.2]} 17. Ne4 {[%clk 0:01:13.2]} 17... Ba7 {[%clk
0:02:49.9]} 18. f4 {[%clk 0:01:09.7]} 18... Ne7 {[%clk 0:02:50.2]} 19. Be3
{[%clk 0:01:06.2]} 19... Bxe3 {[%clk 0:02:45.5]} 20. fxe3 {[%clk 0:01:06.1]}
20... Re6 {[%clk 0:02:43.7]} 21. Ng5 {[%clk 0:00:49.7]} 21... Rxe3 {[%clk
0:02:43.7]} 22. Rae1 {[%clk 0:00:49.6]} 22... Rxe1 {[%clk 0:01:42.5]} 23. Rxe1
{[%clk 0:00:50.5]} 23... Nd5 {[%clk 0:01:42.6]} 24. Ne6 {[%clk 0:00:50.2]} 24...
Rf6 {[%clk 0:01:22.9]} 25. Re4 {[%clk 0:00:47.6]} 25... Kd7 {[%clk 0:01:14.9]}
26. Nc5+ {[%clk 0:00:35.7]} 26... Kc6 {[%clk 0:01:14.9]} 27. Nd3 {[%clk
0:00:35.9]} 27... Kd6 {[%clk 0:01:14.8]} 28. Kg2 {[%clk 0:00:35.6]} 28... c5
{[%clk 0:01:00.3]} 29. Kf3 {[%clk 0:00:26.9]} 29... Rh6 {[%clk 0:00:52.6]} 30.
Kg3 {[%clk 0:00:26.4]} 30... Rg6+ {[%clk 0:00:51.9]} 31. Kf2 {[%clk 0:00:26.4]}
31... Rg4 {[%clk 0:00:49.1]} 32. h3 {[%clk 0:00:24.2]} 32... Rh4 {[%clk
0:00:48.5]} 33. Kg3 {[%clk 0:00:24.4]} 33... Rh6 {[%clk 0:00:48.3]} 34. c4
{[%clk 0:00:24.5]} 34... Rg6+ {[%clk 0:00:45.3]} 35. Kf2 {[%clk 0:00:24]} 35...
Nf6 {[%clk 0:00:40.4]} 36. Re5 {[%clk 0:00:24]} 36... b6 {[%clk 0:00:40.9]} 37.
b3 {[%clk 0:00:20.8]} 37... Rh6 {[%clk 0:00:39.6]} 38. Kg3 {[%clk 0:00:20.6]}
38... Nh5+ {[%clk 0:00:35.2]} 39. Kf3 {[%clk 0:00:19.8]} 39... Nf6 {[%clk
0:00:34.8]} 40. Kg3 {[%clk 0:00:19.5]} 40... Nd7 {[%clk 0:00:35.3]} 41. Rg5
{[%clk 0:00:19.4]} 41... Re6 {[%clk 0:00:31.4]} 42. Kf3 {[%clk 0:00:18.9]} 42...
g6 {[%clk 0:00:31.6]} 43. Rd5+ {[%clk 0:00:17.7]} 43... Ke7 {[%clk 0:00:28.6]}
44. Rg5 {[%clk 0:00:16.1]} 44... Kf6 {[%clk 0:00:26.2]} 45. Rd5 {[%clk
0:00:15.9]} 45... Ke7 {[%clk 0:00:23.3]} 46. Rg5 {[%clk 0:00:15.9]} 46... Rd6
{[%clk 0:00:22.1]} 47. Ke3 {[%clk 0:00:14.7]} 47... Nf6 {[%clk 0:00:21.8]} 48.
Re5+ {[%clk 0:00:14.9]} 48... Kf7 {[%clk 0:00:21.9]} 49. Nf2 {[%clk 0:00:13.4]}
49... Rd4 {[%clk 0:00:21.3]} 50. Nd3 {[%clk 0:00:12.9]} 50... Nh5 {[%clk
0:00:20]} 51. Rd5 {[%clk 0:00:11.9]} 51... Rxd5 {[%clk 0:00:18.6]} 52. cxd5
{[%clk 0:00:12.8]} 52... Nf6 {[%clk 0:00:14.9]} 53. Ne5+ {[%clk 0:00:09.8]}
53... Ke7 {[%clk 0:00:15.4]} 54. Nc6+ {[%clk 0:00:09.4]} 54... Kd6 {[%clk
0:00:15.8]} 55. Nb8 {[%clk 0:00:09.7]} 55... Nxd5+ {[%clk 0:00:15.2]} 56. Ke4
{[%clk 0:00:10.4]} 56... Nb4 {[%clk 0:00:15.5]} 57. a3 {[%clk 0:00:10]} 57...
Nc2 {[%clk 0:00:14]} 58. a4 {[%clk 0:00:10.4]} 58... Nb4 {[%clk 0:00:13.4]} 59.
h4 {[%clk 0:00:08.8]} 59... Kc7 {[%clk 0:00:13.6]} 60. h5 {[%clk 0:00:08]} 60...
Kxb8 {[%clk 0:00:13.4]} 0-1